bitfinex-derivatives/quotes_BNBF0:USTF0_20250329
["timestamp","ask_amount","ask_price","bid_price","bid_amount"]
[1743237545381,0.3271716,611.3,610.57,2.27351466]
[1743237545583,0.3271716,611.3,610.56,7.731]
[1743237546480,0.3271716,611.3,610.57,2.2731292]
[1743237546685,0.3271716,611.3,610.58,2.2731292]
[1743237546881,0.3271716,611.3,610.59,2.2731292]
[1743237547083,0.3271716,611.3,610.6,2.2731292]
[1743237547385,0.3271716,611.3,610.56,7.731]
[1743237547585,0.3271716,611.3,610.57,2.2728887]
[1743237547785,0.3271716,611.3,610.56,7.731]
[1743237548180,0.3271716,611.3,610.56,10.194]
[1743237549985,1.40410976,611.77,610.56,10.194]
[1743237550186,0.32692559,611.76,610.56,10.194]
[1743237551381,0.32692559,611.76,610.57,2.27158092]
[1743237551581,0.32692559,611.76,610.58,2.27158092]
[1743237551787,0.32692559,611.76,610.59,2.27158092]
[1743237551987,0.32692559,611.76,610.56,10.194]
[1743237552288,0.32692559,611.76,610.57,2.27152255]
[1743237552487,0.32692559,611.76,610.58,2.27118828]
[1743237552683,0.32692559,611.76,610.56,10.194]
[1743237552888,0.32692559,611.76,610.57,2.27124962]
[1743237553188,0.32692559,611.76,610.56,10.194]
[1743237553485,0.32692559,611.76,610.57,2.27106346]
[1743237553690,0.32692559,611.76,610.56,10.194]
[1743237553889,0.32692559,611.76,610.57,2.27093317]
[1743237554089,0.32692559,611.76,610.56,10.194]
[1743237554890,0.32692559,611.76,610.57,2.26915235]
[1743237555092,0.32692559,611.76,610.58,2.26915235]
[1743237555290,0.32692559,611.76,610.56,10.194]
[1743237555790,0.32692559,611.76,610.57,2.26808189]
[1743237555984,0.32692559,611.76,610.56,10.194]
[1743237557484,0.32692559,611.76,610.57,2.26453441]
[1743237557690,0.32692559,611.76,610.58,2.26453441]
[1743237557992,0.32692559,611.76,610.59,2.26453441]
[1743237558193,0.32692559,611.76,610.6,2.26453441]
[1743237558490,0.32692559,611.76,610.61,2.26385775]
[1743237558686,0.32692559,611.76,610.56,8.029]
[1743237558993,0.32692559,611.76,610.57,2.26331103]
[1743237559190,0.32692559,611.76,610.58,2.26331103]
[1743237559386,0.32692559,611.76,610.59,2.26331103]
[1743237559687,0.32692559,611.76,610.6,2.26331103]
[1743237559890,0.32692559,611.76,610.61,2.26331103]
[1743237560086,0.32692559,611.76,610.62,2.26331103]
[1743237560390,0.32692559,611.76,610.56,8.029]
[1743237560391,0.32692559,611.76,610.63,2.26331103]
[1743237560694,0.32692559,611.76,610.64,2.26331103]
[1743237560890,0.32692559,611.76,610.65,2.26331103]
[1743237561086,0.32692559,611.76,610.63,2.046]
[1743237561087,0.32692559,611.76,610.66,2.26331103]
[1743237561285,0.32692559,611.76,610.67,2.26331103]
[1743237561485,0.32692559,611.76,610.68,2.26331103]
[1743237561791,0.32692559,611.76,610.69,2.26331103]
[1743237561990,0.32692559,611.76,610.7,2.26331103]
[1743237562190,0.32692559,611.76,610.71,2.26331103]
[1743237562386,0.32692559,611.76,610.72,2.26331103]
[1743237562592,0.32692559,611.76,610.73,2.26331103]
[1743237562791,0.32692559,611.76,610.74,2.26331103]
[1743237562986,0.32692559,611.76,610.75,2.26331103]
[1743237563188,0.32692559,611.76,610.63,2.046]
[1743237564791,0.32692559,611.76,610.64,2.638]
[1743237566692,0.32692559,611.76,610.65,1.554]
[1743237568693,0.32692559,611.76,610.65,3.831]
[1743237574293,0.32692559,611.76,610.66,2.26400732]
[1743237574498,0.32692559,611.76,610.67,2.26400732]
[1743237574696,0.32692559,611.76,610.68,2.26400732]
[1743237574897,0.32692559,611.76,610.69,2.26400732]
[1743237575197,0.32692559,611.76,610.7,2.26400732]
[1743237575397,0.32692559,611.76,610.71,2.26400732]
[1743237575597,0.32692559,611.76,610.65,3.831]
[1743237580495,0.32692559,611.76,610.65,6.162]
[1743237587808,0.32692559,611.76,610.66,2.27010455]
[1743237588001,0.32692559,611.76,610.67,2.27010455]
[1743237588204,0.32692559,611.76,610.65,6.162]
[1743237588403,0.32692559,611.76,610.66,2.27014219]
[1743237588606,0.32692559,611.76,610.67,2.27014219]
[1743237588806,0.32692559,611.76,610.65,6.162]
[1743237589907,0.32692559,611.76,610.65,8.519]
[1743237598613,0.32692559,611.76,610.65,10.214]
[1743237600114,2.50401788,611.42,610.65,10.214]
[1743237600414,0.32711273,611.41,610.65,10.214]
[1743237601115,0.32711273,611.41,610.65,4.052]
[1743237601416,1.491191,611.41,610.65,4.052]
[1743237601916,0.32711273,611.41,610.65,4.052]
[1743237602718,2.83113061,611.41,610.65,4.052]
[1743237604511,1.16335259,611.4,610.65,4.052]
[1743237604715,0.32712344,611.39,610.65,4.052]
[1743237613928,0.32712344,611.39,610.65,1.695]
[1743237630242,0.32712344,611.39,610.65,4.242]
[1743237631743,0.32712344,611.39,610.65,2.547]
[1743237633346,2.50401788,611.12,610.65,2.547]
[1743237635942,1.16096396,611.28,610.65,2.547]
[1743237636446,2.50401788,611.36,610.65,2.547]
[1743237636648,0.32714484,611.35,610.65,2.547]
[1743237637347,1.4881088,611.35,610.65,2.547]
[1743237637549,2.50401788,611.18,610.65,2.547]
[1743237641545,2.50401788,611.26,610.65,2.547]
[1743237644451,0.32714484,611.35,610.65,2.547]
[1743237647850,0.32714484,611.35,610.65,4.919]
[1743237650654,0.32714484,611.35,610.65,6.955]
[1743237651254,0.32714484,611.35,610.66,2.31702962]
[1743237651456,0.32714484,611.35,610.65,6.955]
[1743237651654,0.32714484,611.35,610.66,2.31704922]
[1743237651856,0.32714484,611.35,610.67,2.31705106]
[1743237652055,0.32714484,611.35,610.65,4.408]
[1743237652362,0.32714484,611.35,610.66,2.31788603]
[1743237652557,0.32714484,611.35,610.67,2.31788603]
[1743237652758,0.32714484,611.35,610.65,6.567]
[1743237652964,0.32714484,611.35,610.66,2.31795068]
[1743237653161,0.32714484,611.35,610.67,2.31795068]
[1743237653362,0.32714484,611.35,610.68,2.31795068]
[1743237653563,0.32714484,611.35,610.69,2.31795068]
[1743237653759,0.32714484,611.35,610.65,6.567]
[1743237653966,0.32714484,611.35,610.66,2.31853378]
[1743237654259,0.32714484,611.35,610.67,2.31853378]
[1743237654462,0.32714484,611.35,610.68,2.31853378]
[1743237654664,0.32714484,611.35,610.69,2.31853378]
[1743237654964,0.32714484,611.35,610.7,2.31853378]
[1743237655158,0.32714484,611.35,610.71,2.31853378]
[1743237655363,0.32714484,611.35,610.72,2.31853378]
[1743237655562,0.32714484,611.35,610.73,2.31853378]
[1743237655759,0.32714484,611.35,610.68,1.946]
[1743237663876,0.32714484,611.35,610.68,4.052]
[1743237670684,0.32714484,611.35,610.68,6.995]
[1743237673787,0.32714484,611.35,610.68,8.95]
[1743237679293,0.32714484,611.35,610.68,11.551]
[1743237681594,1.62798688,611.92,610.68,11.551]
[1743237681795,0.32685079,611.9,610.68,11.551]
[1743237686209,0.32685079,611.9,610.69,2.31146206]
[1743237686409,0.32685079,611.9,610.7,2.31146206]
[1743237686609,0.32685079,611.9,610.71,2.31146206]
[1743237686909,0.32685079,611.9,610.72,2.31146206]
[1743237687111,0.32685079,611.9,610.73,2.31146206]
[1743237687306,0.32685079,611.9,610.74,2.31146206]
[1743237687506,0.32685079,611.9,610.75,2.31146206]
[1743237687709,0.32685079,611.9,610.76,2.31146206]
[1743237687907,0.32685079,611.9,610.77,2.31146206]
[1743237688112,0.32685079,611.9,610.78,2.31146206]
[1743237688304,0.32685079,611.9,610.68,9.605]
[1743237688305,0.32685079,611.9,610.79,2.31146206]
[1743237688606,0.32685079,611.9,610.8,2.31146206]
[1743237688808,0.32685079,611.9,610.81,2.31146206]
[1743237689004,0.32685079,611.9,610.82,2.31146206]
[1743237689210,0.32685079,611.9,610.83,2.31146206]
[1743237689505,0.32685079,611.9,610.84,2.31146206]
[1743237689706,0.32685079,611.9,610.85,2.31146206]
[1743237689909,0.32685079,611.9,610.86,2.31146206]
[1743237690110,0.32685079,611.9,610.87,2.31146206]
[1743237690411,2.50662553,611.82,610.88,2.31146206]
[1743237690610,0.32689887,611.81,610.89,2.31146206]
[1743237690905,0.32689887,611.81,610.9,2.31146206]
[1743237691111,0.32689887,611.81,610.91,2.31146206]
[1743237691307,0.32689887,611.81,610.92,2.31146206]
[1743237691612,0.32689887,611.81,610.93,2.31146206]
[1743237691912,0.32689887,611.81,610.94,2.31146206]
[1743237692112,0.32689887,611.81,610.95,2.31146206]
[1743237692312,0.32689887,611.81,610.96,2.31146206]
[1743237692615,0.32689887,611.81,610.97,4.45146206]
[1743237692813,0.32689887,611.81,610.98,2.31146206]
[1743237693014,0.32689887,611.81,610.99,2.31146206]
[1743237693214,1.47596143,611.81,610.97,2.14]
[1743237693411,1.47596143,611.81,611.0,1.922]
[1743237697109,0.32689887,611.81,611.0,1.922]
[1743237699217,0.32689887,611.81,611.01,2.054]
[1743237705421,0.32689887,611.81,611.02,2.584]
[1743237713325,2.50662553,611.8,611.02,2.584]
[1743237713525,0.32690956,611.79,611.02,2.584]
[1743237714229,1.47597212,611.79,611.02,2.584]
[1743237716329,1.47597212,611.79,611.02,4.534]
[1743237716330,0.32690956,611.79,611.02,4.534]
[1743237723737,2.50662553,611.74,611.02,4.534]
[1743237723942,0.32694162,611.73,611.02,4.534]
[1743237724338,1.72349415,611.73,611.02,4.534]
[1743237724738,2.87255671,611.73,611.02,4.534]
[1743237725543,5.38679042,611.73,611.02,4.534]
[1743237725742,1.39655253,611.72,611.02,4.534]
[1743237725943,2.50240094,611.33,611.02,4.534]
[1743237727444,2.50240094,611.57,611.02,4.534]
[1743237727646,0.3270325,611.56,611.02,4.534]
[1743237728036,1.47902478,611.56,611.02,4.534]
[1743237728645,2.50240094,611.55,611.02,4.534]
[1743237728845,0.3270432,611.54,611.02,4.534]
[1743237729747,1.47903548,611.54,611.02,4.534]
[1743237731241,0.3270432,611.54,611.02,4.534]
[1743237738547,0.3270432,611.54,611.02,2.584]
[1743237741751,2.50240094,611.38,611.02,2.584]
[1743237741945,0.32713414,611.37,611.02,2.584]
[1743237742344,0.32713414,611.37,610.89,3.021]
[1743237744556,2.50240094,611.32,610.89,3.021]
[1743237744855,0.32716624,611.31,610.89,3.021]
[1743237747353,1.47625247,611.31,610.89,3.021]
[1743237747656,2.50240094,611.3,610.89,3.021]
[1743237747851,0.32717695,611.29,610.89,3.021]
[1743237748357,1.47626318,611.29,610.89,3.021]
[1743237750653,0.32717695,611.29,610.89,3.021]
[1743237753780,0.32717695,611.29,610.74,2.293]
[1743237757059,0.32717695,611.29,610.64,4.256]
[1743237761265,0.32717695,611.29,610.64,1.713]
[1743237772373,0.32717695,611.29,610.54,9.658]
[1743237772576,0.32717695,611.29,610.54,7.12]
[1743237773279,0.32717695,611.29,610.54,4.408]
[1743237775583,2.50240094,611.18,610.54,4.408]
[1743237775781,0.32724119,611.17,610.54,4.408]
[1743237776876,1.46965731,611.17,610.54,4.408]
[1743237777277,1.46965731,611.17,610.54,2.31]
[1743237777785,2.50240094,611.15,610.54,2.31]
[1743237778082,2.82965284,611.15,610.54,2.31]
[1743237779780,2.50240094,610.96,610.54,2.31]
[1743237782993,2.50240094,610.98,610.54,2.31]
[1743237785096,2.50240094,610.98,610.49,9.875]
[1743237785796,2.82965284,611.15,610.49,9.875]
[1743237785995,1.14444028,611.13,610.49,9.875]
[1743237786896,1.14444028,611.14,610.49,9.875]
[1743237787497,1.14444028,611.14,610.49,11.949]
[1743237788693,1.14444028,611.14,610.49,9.056]
[1743237789092,0.3272519,611.15,610.49,9.056]
[1743237792899,0.3272519,611.15,610.49,10.754]
[1743237793802,0.3272519,611.15,610.5,2.3232959]
[1743237794101,0.3272519,611.15,610.51,2.3232959]
[1743237794303,0.3272519,611.15,610.52,2.3232959]
[1743237794495,0.3272519,611.15,610.49,10.754]
[1743237795903,0.3272519,611.15,610.49,8.373]
[1743237797199,0.3272519,611.15,610.49,5.938]
[1743237798907,2.50240094,611.0,610.49,5.938]
[1743237801405,1.14678751,611.14,610.49,5.938]
[1743237801602,0.32726261,611.13,610.49,5.938]
[1743237802608,0.32726261,611.13,610.49,3.864]
[1743237804112,2.50240094,611.03,610.49,3.864]
[1743237806017,3.64918845,611.12,610.49,3.864]
[1743237806214,0.32727332,611.11,610.49,3.864]
[1743237810719,2.50240094,610.99,610.49,3.864]
[1743237812917,2.50240094,610.99,610.49,2.166]
[1743237813719,2.50240094,611.08,610.49,2.166]
[1743237814018,0.32729474,611.07,610.49,2.166]
[1743237816221,2.50240094,611.04,610.49,2.166]
[1743237818320,0.32729474,611.07,610.49,2.166]
[1743237822628,2.50240094,610.96,610.49,2.166]
[1743237822824,0.32735903,610.95,610.49,2.166]
[1743237823329,1.47489318,610.95,610.49,2.166]
[1743237824524,3.97729412,610.95,610.49,2.166]
[1743237825826,1.14753415,610.94,610.49,2.166]
[1743237826022,0.32736974,610.93,610.49,2.166]
[1743237836838,0.32736974,610.93,610.39,2.578]
[1743237858151,0.32736974,610.93,610.4,2.32550741]
[1743237858349,0.32736974,610.93,610.39,2.578]
[1743237859451,0.32736974,610.93,610.4,2.32442898]
[1743237859749,0.32736974,610.93,610.41,2.32442898]
[1743237860049,0.32736974,610.93,610.42,2.32442898]
[1743237860247,0.32736974,610.93,610.43,2.32442898]
[1743237860452,0.32736974,610.93,610.44,2.32442898]
[1743237860653,0.32736974,610.93,610.45,2.32442898]
[1743237860854,0.32736974,610.93,610.46,2.32442898]
[1743237861056,0.32736974,610.93,610.4,2.67]
[1743237861750,0.32736974,610.93,610.4,5.357]
[1743237866457,0.32736974,610.93,610.41,2.32263243]
[1743237866653,0.32736974,610.93,610.42,2.32258568]
[1743237866854,0.32736974,610.93,610.4,5.357]
[1743237867058,0.32736974,610.93,610.41,2.32258503]
[1743237867259,0.32736974,610.93,610.4,5.357]
[1743237868058,0.32736974,610.93,610.41,2.32227172]
[1743237868259,0.32736974,610.93,610.4,5.357]
[1743237868460,0.32736974,610.93,610.41,2.32188074]
[1743237868760,0.32736974,610.93,610.41,2.509]
[1743237868957,2.50240094,611.39,610.42,2.32183967]
[1743237869261,1.14240425,611.38,610.43,2.32183967]
[1743237869462,1.14240425,611.38,610.44,2.32183967]
[1743237869760,2.50240094,611.39,610.45,2.32183967]
[1743237869961,2.50240094,611.39,610.46,2.32183967]
[1743237870161,2.50240094,611.39,610.47,2.32183967]
[1743237870361,2.50240094,611.39,610.48,2.32183967]
[1743237870561,2.50240094,611.39,610.49,2.32183967]
[1743237870857,2.50240094,611.39,610.5,2.32183967]
[1743237871061,2.50240094,611.39,610.51,2.32183967]
[1743237871261,2.50240094,611.39,610.41,2.509]
[1743237871262,2.50240094,611.24,610.52,2.32183967]
[1743237871456,2.50240094,611.24,610.53,2.32183967]
[1743237871962,2.50240094,611.24,610.41,2.509]
[1743237873466,2.50240094,611.24,610.42,2.30307565]
[1743237873763,2.50240094,611.27,610.43,2.30307565]
[1743237873963,2.50240094,611.27,610.44,2.30307565]
[1743237874166,2.50240094,611.27,610.41,2.509]
[1743237874363,2.50240094,611.27,610.42,2.30301466]
[1743237874559,2.50240094,611.27,610.41,2.509]
[1743237874863,2.50240094,611.27,610.42,2.30292869]
[1743237875068,2.50240094,611.27,610.43,2.30296524]
[1743237875365,2.50240094,611.27,610.44,2.30300044]
[1743237875666,2.50240094,611.27,610.45,2.30300044]
[1743237875965,2.50240094,611.26,610.46,2.30300044]
[1743237876164,2.50240094,611.26,610.47,2.30300044]
[1743237876463,2.50240094,611.26,610.41,2.509]
[1743237876664,2.50240094,611.26,610.42,2.30283566]
[1743237876863,2.50240094,611.26,610.43,2.30283566]
[1743237877057,2.50240094,611.26,610.44,2.30283566]
[1743237877257,2.50240094,611.26,610.45,2.30283566]
[1743237877462,2.50240094,611.26,610.46,2.30283566]
[1743237877660,2.50240094,611.26,610.47,2.30283566]
[1743237877861,2.50240094,611.26,610.41,2.509]
[1743237878067,2.50240094,611.26,610.42,2.30256651]
[1743237878266,2.50240094,611.26,610.43,2.30256651]
[1743237878466,2.50240094,611.26,610.44,2.30256651]
[1743237878665,3.6226601,611.41,610.45,2.30256651]
[1743237878666,2.50240094,611.29,610.45,2.30256651]
[1743237878866,2.50240094,611.29,610.46,2.30256651]
[1743237879166,2.50240094,611.29,610.47,2.30256651]
[1743237879362,2.50240094,611.29,610.42,2.747]
[1743237880965,3.6226601,611.42,610.42,2.747]
[1743237882272,2.50240094,611.45,610.42,2.747]
[1743237882975,3.6226601,611.61,610.42,2.747]
[1743237885773,1.63126138,611.97,610.42,2.747]
[1743237886775,1.63126138,611.98,610.42,2.747]
[1743237888081,1.63126138,611.97,610.42,2.747]
[1743237888680,1.63126138,611.87,610.42,2.747]
[1743237888877,1.62893445,611.81,610.42,2.747]
[1743237889078,1.62850036,611.81,610.42,5.706]
[1743237889275,1.62850036,611.8,610.42,5.706]
[1743237889474,1.62850036,611.81,610.42,5.706]
[1743237890079,1.62850036,611.74,610.42,5.706]
[1743237890674,1.63126138,611.57,610.42,5.706]
[1743237890875,5.90091433,611.57,610.42,5.706]
[1743237891081,1.63126138,611.53,610.42,5.706]
[1743237892082,1.63126138,611.43,610.42,5.706]
[1743237892585,4.26951424,611.52,610.42,5.706]
[1743237892586,1.63126138,611.42,610.42,5.706]
[1743237892785,2.50240094,611.3,610.42,5.706]
[1743237895589,2.50240094,611.2,610.42,5.706]
[1743237897789,1.63126138,611.89,610.42,5.706]
[1743237899687,1.63126138,611.93,610.42,5.706]
[1743237900481,1.63126138,611.93,610.42,7.97]
[1743237900881,1.63126138,611.94,610.42,7.97]
[1743237901083,1.63126138,611.94,610.42,9.793]
[1743237901483,4.59473566,611.94,610.42,9.793]
[1743237901688,3.61561722,611.93,610.42,9.793]
[1743237902899,1.63126138,611.87,610.42,9.793]
[1743237903398,1.63126138,611.75,610.43,2.30038963]
[1743237903598,1.63126138,611.75,610.44,2.30038963]
[1743237903799,1.63126138,611.75,610.45,2.30038963]
[1743237903998,1.63126138,611.75,610.46,2.30038963]
[1743237904199,1.63126138,611.75,610.47,2.30038963]
[1743237904501,1.63126138,611.75,610.48,2.30038963]
[1743237904696,1.63126138,611.75,610.49,2.30038963]
[1743237904898,1.63126138,611.73,610.5,2.30038963]
[1743237905095,1.63126138,611.73,610.51,2.30038963]
[1743237905297,1.63126138,611.73,610.52,2.30038963]
[1743237905501,1.63126138,611.73,610.42,7.046]
[1743237905697,1.63126138,611.73,610.43,2.3014389]
[1743237905894,1.63126138,611.73,610.44,2.3014389]
[1743237906097,1.63126138,611.73,610.45,2.3014389]
[1743237906299,1.63126138,611.73,610.46,2.3014389]
[1743237906498,1.63126138,611.73,610.47,2.3014389]
[1743237906699,1.63126138,611.73,610.48,2.3014389]
[1743237906894,0.32695231,611.71,610.49,2.3014389]
[1743237907094,0.32695231,611.71,610.5,2.3014389]
[1743237907400,0.32695231,611.71,610.51,2.3014389]
[1743237907602,2.50240094,611.24,610.43,2.503]
[1743237907796,2.50240094,611.24,610.52,2.51]
[1743237908195,2.50240094,611.24,610.53,2.30206593]
[1743237908396,2.50240094,611.24,610.54,2.30206593]
[1743237908599,2.50240094,611.24,610.52,2.51]
[1743237908902,2.50240094,611.24,610.53,2.30270411]
[1743237909094,2.50240094,611.24,610.54,2.30270411]
[1743237909295,2.50240094,611.24,610.55,2.30286652]
[1743237909599,2.50240094,611.24,610.52,2.51]
[1743237909901,2.50240094,611.24,610.53,2.30348612]
[1743237910096,2.50240094,611.24,610.54,2.30348612]
[1743237910299,2.50240094,611.24,610.55,2.30348612]
[1743237910602,2.50240094,611.24,610.56,2.30348612]
[1743237910901,2.50240094,611.24,610.57,2.30348612]
[1743237911201,2.50240094,611.24,610.52,2.51]
[1743237911503,0.32695231,611.71,610.52,2.51]
[1743237911504,2.50240094,611.21,610.52,2.51]
[1743237913903,2.97036896,611.36,610.52,2.51]
[1743237913904,2.50240094,611.3,610.52,2.51]
[1743237914905,2.50240094,611.3,610.52,4.446]
[1743237916307,2.97036896,611.46,610.53,2.30471094]
[1743237916502,2.97036896,611.46,610.52,4.446]
[1743237917206,0.32695231,611.71,610.52,4.446]
[1743237919208,0.32695231,611.71,610.53,2.30116684]
[1743237919506,0.32695231,611.71,610.54,2.30116684]
[1743237919708,0.32695231,611.71,610.55,2.30116684]
[1743237919913,0.32695231,611.71,610.56,2.30116684]
[1743237920108,0.32695231,611.71,610.57,2.30116684]
[1743237920310,0.32695231,611.71,610.58,2.30116684]
[1743237920510,0.32695231,611.71,610.52,4.446]
[1743237920809,0.32695231,611.71,610.53,2.3002916]
[1743237921009,0.32695231,611.71,610.54,2.3002916]
[1743237921209,0.32695231,611.71,610.55,2.3002916]
[1743237921410,0.32695231,611.71,610.56,2.3002916]
[1743237921605,0.32695231,611.71,610.57,2.3002916]
[1743237921811,0.32695231,611.71,610.58,2.3002916]
[1743237922109,0.32695231,611.71,610.59,2.3002916]
[1743237922305,0.32695231,611.71,610.6,2.3002916]
[1743237922610,0.32695231,611.71,610.52,4.446]
[1743237931123,0.32695231,611.71,610.52,6.687]
[1743237933423,0.32695231,611.71,610.53,2.29136206]
[1743237933627,0.32695231,611.71,610.54,2.29136206]
[1743237933823,0.32695231,611.71,610.55,2.29136206]
[1743237934025,0.32695231,611.71,610.56,2.29136206]
[1743237934229,0.32695231,611.71,610.57,2.29136206]
[1743237934423,0.32695231,611.71,610.58,2.29136206]
[1743237934628,0.32695231,611.71,610.59,2.29136206]
[1743237934824,0.32695231,611.71,610.6,2.29136206]
[1743237935024,0.32695231,611.71,610.61,2.29136206]
[1743237935223,0.32695231,611.71,610.62,2.29136206]
[1743237935428,0.32695231,611.71,610.63,2.29136206]
[1743237935628,0.32695231,611.71,610.64,2.29136206]
[1743237935829,0.32695231,611.71,610.65,2.29136206]
[1743237936039,0.32695231,611.71,610.66,2.29136206]
[1743237936225,0.32695231,611.71,610.67,2.29136206]
[1743237936427,0.32695231,611.71,610.68,2.29136206]
[1743237936731,0.32695231,611.71,610.69,2.29136206]
[1743237936934,0.32695231,611.71,610.7,2.29136206]
[1743237937233,0.32695231,611.71,610.71,2.29136206]
[1743237937531,0.32695231,611.71,610.72,2.29136206]
[1743237937727,0.32695231,611.71,610.73,2.29136206]
[1743237937930,0.32695231,611.71,610.74,2.29136206]
[1743237938228,0.32695231,611.71,610.75,2.29136206]
[1743237938432,0.32695231,611.71,610.76,2.29136206]
[1743237938731,0.32695231,611.71,610.77,2.29136206]
[1743237938931,0.32695231,611.71,610.55,1.752]
[1743237938932,0.32695231,611.71,610.78,2.29136206]
[1743237939230,0.32695231,611.71,610.79,2.29136206]
[1743237939431,0.32695231,611.71,610.8,2.29136206]
[1743237939631,0.32695231,611.71,610.81,2.29136206]
[1743237939831,0.32695231,611.71,610.82,2.29136206]
[1743237940032,0.32695231,611.71,610.83,2.29136206]
[1743237940230,0.32695231,611.71,610.84,2.29136206]
[1743237940531,0.32695231,611.71,610.85,2.29136206]
[1743237940731,0.32695231,611.71,610.86,2.29136206]
[1743237940931,0.32695231,611.71,610.87,2.29136206]
[1743237941134,0.32695231,611.71,610.88,2.29136206]
[1743237941427,0.32695231,611.71,610.79,2.019]
[1743237943733,0.32695231,611.71,610.79,4.203]
[1743237951732,0.32695231,611.71,610.8,2.28544797]
[1743237951937,0.32695231,611.71,610.81,2.28544797]
[1743237952236,0.32695231,611.71,610.82,2.28544797]
[1743237952437,0.32695231,611.71,610.79,4.203]
[1743237952638,0.32695231,611.71,610.8,2.28559545]
[1743237952833,0.32695231,611.71,610.81,2.28559545]
[1743237953038,0.32695231,611.71,610.79,4.203]
[1743237956742,0.32695231,611.71,610.8,2.28710112]
[1743237956942,0.32695231,611.71,610.81,2.28710112]
[1743237957143,0.32695231,611.71,610.82,2.28710112]
[1743237957338,0.32695231,611.71,610.79,6.637]
[1743237957541,0.32695231,611.71,610.8,2.28739642]
[1743237957848,0.32695231,611.71,610.81,2.28739642]
[1743237958042,0.32695231,611.71,610.82,2.28739642]
[1743237958239,0.32695231,611.71,610.83,2.28790506]
[1743237958544,0.32695231,611.71,610.79,6.637]
[1743237958737,0.32695231,611.71,610.8,2.28786005]
[1743237958938,0.32695231,611.71,610.81,2.28786005]
[1743237959141,0.32695231,611.71,610.82,2.28786005]
[1743237959341,0.32695231,611.71,610.83,2.28786005]
[1743237959544,0.32695231,611.71,610.84,2.28827947]
[1743237959743,0.32695231,611.71,610.85,2.28827947]
[1743237959945,0.32695231,611.71,610.86,2.28827947]
[1743237960144,0.32695231,611.71,610.81,2.836]
[1743237960344,0.32695231,611.71,610.82,2.2882544]
[1743237960539,0.32695231,611.71,610.83,2.2882544]
[1743237960739,0.32695231,611.71,610.84,2.2882544]
[1743237961042,0.32695231,611.71,610.85,2.2882544]
[1743237961242,0.32695231,611.71,610.81,2.836]
[1743237962044,1.13536045,612.11,610.81,2.836]
[1743237962246,0.32674399,612.1,610.81,2.836]
[1743237965048,0.32674399,612.1,610.81,4.897]
[1743237966748,0.32674399,612.1,610.82,2.28833573]
[1743237967050,0.32674399,612.1,610.83,2.28833573]
[1743237967250,0.32674399,612.1,610.84,2.28833573]
[1743237967446,0.32674399,612.1,610.85,2.28833573]
[1743237967746,0.32674399,612.1,610.86,2.28833573]
[1743237967946,0.32674399,612.1,610.87,2.28833573]
[1743237968144,0.32674399,612.1,610.88,2.28833573]
[1743237968349,0.32674399,612.1,610.89,2.28833573]
[1743237968549,0.32674399,612.1,610.86,2.294]
[1743237968745,0.32674399,612.1,610.87,2.28947467]
[1743237968948,0.32674399,612.1,610.88,2.28947467]
[1743237969146,0.32674399,612.1,610.86,2.294]
[1743237969350,0.32674399,612.1,610.87,2.28947411]
[1743237969550,0.32674399,612.1,610.86,2.294]
[1743237969754,0.32674399,612.1,610.87,2.28968386]
[1743237970051,0.32674399,612.1,610.88,2.28968386]
[1743237970251,0.32674399,612.1,610.89,2.28968386]
[1743237970552,0.32674399,612.1,610.9,2.28968386]
[1743237970753,0.32674399,612.1,610.86,2.294]
[1743237970952,0.32674399,612.1,610.87,2.2904219]
[1743237971151,0.32674399,612.1,610.88,2.2904219]
[1743237971451,0.32674399,612.1,610.89,2.2904219]
[1743237971652,0.32674399,612.1,610.86,2.294]
[1743237971954,0.32674399,612.1,610.87,2.29125228]
[1743237972152,0.32674399,612.1,610.86,2.294]
[1743237972153,0.32674399,612.1,610.88,2.29125228]
[1743237972353,0.32674399,612.1,610.89,2.29125228]
[1743237972653,0.32674399,612.1,610.9,2.29125228]
[1743237972853,0.32674399,612.1,610.91,2.29125228]
[1743237973153,0.32674399,612.1,610.92,2.29125228]
[1743237973348,0.32674399,612.1,610.93,2.29125228]
[1743237973555,2.50662553,612.0,610.94,2.29125228]
[1743237973754,0.32680272,611.99,610.95,2.29125228]
[1743237973951,0.32680272,611.99,610.96,2.29125228]
[1743237974148,0.32680272,611.99,610.97,2.29125228]
[1743237974352,0.32680272,611.99,610.98,2.29125228]
[1743237974549,0.32680272,611.99,610.99,2.29125228]
[1743237974756,0.32680272,611.99,611.0,2.29125228]